Cogmind - Beta 13 @@@ ROGUE MODE // 2024.05.25 @ 02:52:21 Player: A Moose Result: Destroyed by as-79330 with Assembled Heavy Rifle Performance ------------- Evolutions (1) 500 Regions Visited (4) 800 Robots Destroyed (37) 185 Value Destroyed (865) 865 Prototype IDs (4) 80 Alien Tech Used (0) 0 Bonus (135) 135 TOTAL SCORE: 2565 Bonus ------- Follower Combat Kills 135 Cogmind --------- Core Integrity 0/400 Matter 259/300 Energy 119/265 System Corruption 0% Temperature Cool (68) Movement Treading (160) Location -9/Mines Parts ------- > --- POWER (1) -------- Improved Ion Engine > --- PROPULSION (2) --- Light Treads Light Treads > --- UTILITY (4) ------ Large Storage Unit > --- WEAPON (2) ------- Beam Rifle Heavy Assault Rifle > --- INVENTORY (15) --- Large Storage Unit Energy Filter ECM Suite Particle Gun Improved Light Cannon Mini Grenade Launcher Chainsword Signal Generator Peak State ------------ > --- POWER ------------ Improved Deuterium Engine > --- PROPULSION ------- Light Treads Improved Treads > --- UTILITY ---------- Large Storage Unit Medium Armor Plating Improved Shield Generator System Restoration Module > --- WEAPON ----------- Improved Medium Laser Improved Medium Laser > --- INVENTORY -------- Improved Ion Engine Light Treads Light Treads Compact Wheel Compact Wheel Large Storage Unit ECM Suite Beam Rifle Particle Gun Heavy Assault Rifle Improved Light Cannon Chainsword Heavy Explosive Trap Heavy Explosive Trap Signal Generator [Rating: 26] Favorites ----------- Power Light Ion Engine Engine Light Ion Engine Propulsion Light Treads Treads Light Treads Wheel Wheel Utility Large Storage Unit Device ECM Suite Storage Large Storage Unit Processor Targeting Computer Protection Medium Armor Plating Weapon Improved Medium Laser Energy Gun Improved Medium Laser Ballistic Gun Light Assault Rifle Build | -11 -10 -10 -9 -9 ------- Run | Yrd Mat Min Mat Min Slots Evolved 2 | . . . 2 . Power . | . . . . . Propulsion . | . . . . . Utility 2 | . . . 2 . Weapon . | . . . . . Parts Attached 35 | 5 8 1 11 10 Power 5 | 1 1 . 1 2 Engine 5 | 1 1 . 1 2 Core . | . . . . . Reactor . | . . . . . Propulsion 12 | 1 3 . 4 4 Treads 8 | 1 2 . 3 2 Leg . | . . . . . Wheel 4 | . 1 . 1 2 Hover . | . . . . . Flight . | . . . . . Utility 10 | 1 2 1 4 2 Device 5 | . . 1 2 2 Storage 2 | 1 1 . . . Processor 1 | . 1 . . . Hackware . | . . . . . Protection 2 | . . . 2 . Artifact . | . . . . . Weapon 8 | 2 2 . 2 2 Energy Gun 5 | 1 1 . 2 1 Energy Cannon . | . . . . . Ballistic Gun 3 | 1 1 . . 1 Ballistic Cannon . | . . . . . Launcher . | . . . . . Special Weapon . | . . . . . Impact Weapon . | . . . . . Slashing Weapon . | . . . . . Piercing Weapon . | . . . . . Special Melee Weapon . | . . . . . Unidentified Prototypes . | . . . . . Parts Lost 17 | . 3 1 4 9 Power 3 | . 1 . 1 1 Propulsion 7 | . 2 . 1 4 Utility 4 | . . 1 1 2 Weapon 3 | . . . 1 2 Highest Loss Streak 9 | . 2 1 2 9 To Critical Strikes 1 | . . . . 1 Average Slot Usage (%) 92 | . 90 99 92 89 Engine 12 | . 14 14 10 9 Treads 18 | . 20 14 10 21 Wheel 5 | . 3 14 11 . Device 9 | . . 7 18 18 Storage 12 | . 14 14 11 11 Processor 5 | . 10 5 . . Protection 3 | . . . 8 8 Energy Gun 16 | . 14 14 20 18 Ballistic Gun 8 | . 12 14 1 1 Naked Turns . | . . . . . Heaviest Build 46 | 12 29 30 39 46 Greatest Support 43 | 20 40 10 43 43 Greatest Overweight (x) 6 | . 2 2 2 6 Average Overweight (x) . | . . 2 . . Largest Inventory Capacity 15 | 8 15 15 15 15 Average Capacity 13 | 7 11 15 15 15 Most Carried 15 | 7 12 13 15 15 Average Carried 11 | 4 8 12 12 14 Final Capacity 15 | 8 15 15 15 15 Final Carried 15 | 6 12 12 15 8 Class Distribution -------------------- 100% | Mutant Dominant Class ---------------- Mutant | -10/Materials Mutant | -10/Mines Mutant | -9/Materials Mutant | -9/Mines Resources | -11 -10 -10 -9 -9 ----------- Run | Yrd Mat Min Mat Min Matter Collected 608 | 256 162 33 94 63 Remotely . | . . . . . Salvage Created 1229 | 79 584 174 252 140 Parts 70 | 1 37 15 15 2 Haulers Intercepted 3 | . 2 . 1 . Recyclers Shooed 1 | . 1 . . . Parts Field Recycled . | . . . . . Retrieved Matter . | . . . . . Parts Self-Destructed . | . . . . . Prevented . | . . . . . Kills | -11 -10 -10 -9 -9 ------- Run | Yrd Mat Min Mat Min Combat Hostiles Destroyed 33 | . 13 8 5 7 Guns 31 | . 12 8 5 6 AOE 1 | . . . . 1 Classes Destroyed 9 | 1 5 . 1 2 Hauler 3 | . 2 . 1 . Recycler 1 | 1 . . . . Operator 2 | . 2 . . . Watcher 2 | . 2 . . . Swarmer 12 | . 5 6 . 1 Grunt 14 | . 8 2 3 1 Duelist 1 | . . . . 1 Sentry 2 | . . . 2 . Assembled 4 | . . . . 4 Best Kill Streak 5 | 1 4 5 2 2 Combat Bots Only 5 | . 3 5 2 2 Max Kills in Single Turn 2 | 1 1 2 1 1 Gunslinging 1 | . . 1 . . Exploded 1 | . . . . 1 Melee . | . . . . . Uniques/NPCs Destroyed . | . . . . . Combat | -11 -10 -10 -9 -9 -------- Run | Yrd Mat Min Mat Min Hostile Shots Fired 235 | . 76 28 27 104 Missed 52 | . 17 7 5 23 Damage Taken 2644 | . 609 221 551 1263 Core 487 | . 49 33 179 226 Absorbed by Shields 77 | . . . . 77 Core Remaining (%) 83 | 100 . 67 . . Volleys Fired 122 | 2 55 17 19 29 Largest 2 | 2 2 2 2 2 Hottest 112 | 70 76 76 112 112 Shots Fired 228 | 4 100 34 38 52 Gun 228 | 4 100 34 38 52 Cannon . | . . . . . Launcher . | . . . . . Special . | . . . . . Kinetic 78 | 2 45 17 4 10 Thermal 150 | 2 55 17 34 42 Explosive . | . . . . . Electromagnetic . | . . . . . Robot Hit Streak 14 | 3 11 10 14 14 Robot Miss Streak 5 | 1 5 3 4 5 Penetration Max . | . . . . . Secondary Targets 3 | . 1 1 . 1 Max Gunslinging Chain 1 | . 1 1 . 1 Shots Hit Robots 139 | 3 59 22 27 28 Core Hits 59 | 2 26 13 8 10 Critical Kills . | . . . . . Critical Parts Destroyed . | . . . . . Critical Strikes 8 | . 5 . 1 2 Burn 8 | . 5 . 1 2 Melee Attacks . | . . . . . Impact . | . . . . . Slashing . | . . . . . Piercing . | . . . . . Sneak Attacks . | . . . . . Combat Hostiles . | . . . . . Follow-up Attacks . | . . . . . Damage Inflicted 2165 | 41 860 311 463 490 Guns 2165 | 41 860 311 463 490 Cannons . | . . . . . Explosions . | . . . . . Melee . | . . . . . Ramming . | . . . . . Kinetic 508 | 29 254 102 31 92 Thermal 1657 | 12 606 209 432 398 Explosive . | . . . . . Electromagnetic . | . . . . . Impact . | . . . . . Slashing . | . . . . . Piercing . | . . . . . Highest Corruption 2 | . 2 2 2 2 Average Corruption 1 | . 2 2 2 1 Corruption Purged 2 | . . . . 2 Corruption Blocked . | . . . . . Effects 22 | . 7 7 2 6 Message Errors 10 | . 3 4 1 2 Matter Fused 3 | . . 2 . 1 Energy Discharges 1 | . 1 . . . Parts Rejected 2 | . 1 . 1 . Data Loss (minor) 3 | . 2 1 . . Data Loss (major) 1 | . . . . 1 Misfires 1 | . . . . 1 Alerts 1 | . . . . 1 Overload Shots . | . . . . . Overflow Damage . | . . . . . Projectiles . | . . . . . Explosions . | . . . . . Melee . | . . . . . Knockbacks . | . . . . . Impact . | . . . . . Kinetic . | . . . . . Secondary . | . . . . . Self-Inflicted Damage . | . . . . . Shots . | . . . . . Rammed . | . . . . . Targets Rammed . | . . . . . Kicked . | . . . . . Crushed . | . . . . . Highest Temperature 364 | 18 319 297 51 364 Average Temperature 90 | 10 67 128 19 144 Received Heat Transfer 657 | . 186 93 105 273 Siege Activations . | . . . . . Robots Corrupted . | . . . . . Combat Hostiles . | . . . . . Parts Fried . | . . . . . Impact Corruptions . | . . . . . Robots Melted 1 | . 1 . . . Combat Hostiles 1 | . 1 . . . Parts Melted 11 | . 7 . 1 3 Heat Transferred 4255 | 37 1813 444 962 999 Parts Sabotaged . | . . . . . Parts Stolen . | . . . . . Parts Stripped . | . . . . . Power Chain Reactions . | . . . . . Alert | -11 -10 -10 -9 -9 ------- Run | Yrd Mat Min Mat Min Peak Influence 258 | 5 258 215 180 185 Initial 70 | . 3 35 5 70 Average 100 | 2 118 107 93 86 Maximum Alert Level 1 | . 1 1 . . Low Security (%) 86 | 100 81 66 100 100 Level 1 13 | . 18 33 . . Level 2 . | . . . . . Level 3 . | . . . . . Level 4 . | . . . . . Level 5 . | . . . . . High Security . | . . . . . Max Security . | . . . . . Squads Dispatched 7 | . 3 . 2 2 Investigation 4 | . 2 . 1 1 Extermination . | . . . . . Reinforcement 2 | . 1 . 1 . Assault 1 | . . . . 1 Garrison . | . . . . . Intercept . | . . . . . Searches Triggered . | . . . . . Construction Impeded . | . . . . . Haulers Reinforced . | . . . . . Active Scanning Responses . | . . . . . Cargo Convoy Interrupts . | . . . . . Stealth | -11 -10 -10 -9 -9 --------- Run | Yrd Mat Min Mat Min Distress Signals 2 | . 2 . . . Communications Jammed . | . . . . . Distress Signals . | . . . . . Times Spotted 71 | . 24 8 7 32 Peak Tracking Total 13 | . 5 3 2 13 Tactical Retreats 4 | . 1 . 1 2 Traps | -11 -10 -10 -9 -9 ------- Run | Yrd Mat Min Mat Min Traps Triggered 2 | . 1 . 1 . Indirectly . | . . . . . Trap Hack Attempts . | . . . . . Triggered . | . . . . . Disarmed . | . . . . . Reprogrammed . | . . . . . Reused 2 | . . . . 2 Traps Extracted . | . . . . . Installed 2 | . . . . 2 Triggered . | . . . . . Most Traps Carried 2 | . . . . 2 Machines | -11 -10 -10 -9 -9 ---------- Run | Yrd Mat Min Mat Min Machines Disabled 3 | . 1 . 1 1 Max in Single Turn 1 | . 1 . 1 . Machines Repaired . | . . . . . Machines Dismantled . | . . . . . Machines Sabotaged . | . . . . . Overloaded Fab Kills . | . . . . . Hacking | -11 -10 -10 -9 -9 --------- Run | Yrd Mat Min Mat Min Machines Accessed 8 | . 5 . 2 1 Terminals 6 | . 5 . 1 . Fabricators . | . . . . . Repair Stations . | . . . . . Recycling Units . | . . . . . Scanalyzers 1 | . . . 1 . Garrison Access . | . . . . . Total Hacks 20 | . 14 . 5 1 Successful 12 | . 7 . 4 1 Failed 7 | . 6 . 1 . Catastrophic 2 | . 2 . . . Database Lockouts 1 | . 1 . . . Manual 9 | . 6 . 3 . Terminals 15 | . 14 . 1 . Fabricators . | . . . . . Repair Stations . | . . . . . Recycling Units . | . . . . . Scanalyzers 4 | . . . 4 . Garrison Access . | . . . . . Terminal Hacks 9 | . 7 . 1 1 Robot Analysis 4 | . 3 . 1 . Prototype ID Bank 2 | . 2 . . . Open Door 1 | . . . . 1 Terminal Index 1 | . 1 . . . Registered Prototypes 1 | . 1 . . . Fabricator Hacks . | . . . . . Repair Station Hacks . | . . . . . Recycling Unit Hacks . | . . . . . Scanalyzer 3 | . . . 3 . Insert Component 1 | . . . 1 . Analyze 2 | . . . 2 . Garrison Access Hacks . | . . . . . Unauthorized Hacks . | . . . . . Terminals . | . . . . . Fabricators . | . . . . . Repair Stations . | . . . . . Recycling Units . | . . . . . Scanalyzers . | . . . . . Garrison Access . | . . . . . Data Cores Recovered 1 | . 1 . . . Used . | . . . . . Hacking Detections 5 | . 3 . 2 . Full Trace Events 3 | . 2 . 1 . Feedback Events . | . . . . . Feedback Blocked . | . . . . . Robot Schematics Acquired . | . . . . . Robots Built . | . . . . . Authchips . | . . . . . Time . | . . . . . Total Robot Build Rating . | . . . . . Part Schematics Acquired . | . . . . . Parts Built . | . . . . . Authchips . | . . . . . Time . | . . . . . Total Part Build Rating . | . . . . . Parts Repaired . | . . . . . Time . | . . . . . Parts Recycled . | . . . . . Recycled Matter . | . . . . . Retrieved Matter . | . . . . . Retrieved Components . | . . . . . Parts Scanalyzed 1 | . . . 1 . Part Schematics Acquired . | . . . . . Parts Damaged . | . . . . . Bothacking | -11 -10 -10 -9 -9 ------------ Run | Yrd Mat Min Mat Min Used RIF Installer . | . . . . . Robots Hacked . | . . . . . Non-combat . | . . . . . Combat . | . . . . . Robot Hacks Applied . | . . . . . Relay Couplers Released . | . . . . . Fabnet Peak Effective % . | . . . . . Robots Rewired . | . . . . . Allies Hacked . | . . . . . Hacks Repelled . | . . . . . Allies | -11 -10 -10 -9 -9 -------- Run | Yrd Mat Min Mat Min Total Allies 1 | . . . . 1 Largest Group 1 | . . . . 1 Highest-Rated Group 31 | . . . . 31 Highest-Rated Ally 31 | . . . . 31 Total Orders . | . . . . . Ally Attacks 15 | . . . . 15 Total Damage 275 | . . . . 275 Kills 5 | . . . . 5 Allies Corrupted . | . . . . . Allies Melted . | . . . . . Intel | -11 -10 -10 -9 -9 ------- Run | Yrd Mat Min Mat Min Robot Analysis Total 4 | . 3 . 1 . Derelict Logs Recovered 3 | . . 2 . 1 Drone Launches . | . . . . . Drone Recoveries . | . . . . . Exploration | -11 -10 -10 -9 -9 ------------- Run | Yrd Mat Min Mat Min Turns Passed 2535 | 80 940 471 348 696 Spaces Moved 1438 | 47 531 323 178 359 Core 16 | 15 . . . 1 Treads 799 | 32 341 . 79 347 Legs . | . . . . . Wheels 623 | . 190 323 99 11 Hover . | . . . . . Flight . | . . . . . Fastest Speed 50 | 50 110 110 105 100 Average Speed 138 | 124 142 110 129 163 Slowest Speed 350 | 160 240 110 160 350 Overloaded Moves . | . . . . . Propulsion Burnouts . | . . . . . Robots Hopped . | . . . . . Cave-ins Triggered 1 | . . . 1 . Exploration Rate (%) 47 | 5 78 68 19 69 Regions Visited 4 Branch Regions 2 Pre-discovered Areas 1 | . . . . 1 Known Exits Taken 1 | . . . 1 . Unknown Exits Taken 3 | 1 1 1 . . Scrap Searched 2 | . . 1 . 1 Spaces Dug . | . . . . . Terrain Destroyed . | . . . . . Melee . | . . . . . Projectile . | . . . . . AOE . | . . . . . Terrain Rammed . | . . . . . Walls Destroyed . | . . . . . Machines Disabled . | . . . . . Actions | -11 -10 -10 -9 -9 --------- Run | Yrd Mat Min Mat Min Total 1771 | 64 621 408 256 422 Wait 123 | . 10 67 40 6 Move 1434 | 46 530 322 177 359 Hop . | . . . . . Pick Up 41 | 11 14 1 8 7 Fast Attach 3 | . . . 2 1 Attach 24 | 5 6 1 5 7 Detach . | . . . . . Swap 8 | . 2 . 4 2 Drop 14 | . 4 . 1 9 Fire 122 | 2 55 17 19 29 Melee . | . . . . . Ram . | . . . . . Kick . | . . . . . Crush . | . . . . . Escape Stasis . | . . . . . Rewire . | . . . . . Trap 2 | . . . . 2 Miscellaneous . | . . . . . Route ------- -11/Scrapyard -10/Materials (discovered 3 exits: *Mat x2 / [*Min]) -10/Mines -9/Materials (discovered 2 exits: *Min x2) -9/Mines (discovered 3 exits: [*Mat x2] / [*Zio]) History --------- Turn | Location | Event 10 | -11/Scrapyard | Discovered new exit (range 16) 81 | -11/Scrapyard | Entered Materials 319 | -10/Materials | Build established: Mutant 398 | -10/Materials | Discovered new exit (range 16) 441 | -10/Materials | Central database locked down 810 | -10/Materials | Discovered new exit (range 7) 996 | -10/Materials | Discovered new exit (range 12) 1021 | -10/Materials | Entered Mines 1056 | -10/Mines | Discovered new exit (range 10) 1204 | -10/Mines | Learned 2 Materials zone layouts 1492 | -10/Mines | Entered Materials 1492 | -9/Materials | Evolved 2 slots: Utility x2 1493 | -9/Materials | Identified exit to Mines 1713 | -9/Materials | Crushed by falling debris 1840 | -9/Materials | Entered Mines 1848 | -9/Mines | A Derelict revealed a hidden shortcut to a safe place 1867 | -9/Mines | Core integrity fell below 50% 1881 | -9/Mines | Learned location of Zion (-7) 2029 | -9/Mines | Met a Derelict testing a Signal Generator 2043 | -9/Mines | Found Signal Generator 2150 | -9/Mines | Discovered new exit (range 10) 2227 | -9/Mines | Found a hidden stash of uninstalled traps 2243 | -9/Mines | Discovered new exit (range 7) 2329 | -9/Mines | Met a Derelict shopkeep closing up shop 2384 | -9/Mines | Assembled infested the area 2431 | -9/Mines | Core integrity fell below 20% 2468 | -9/Mines | Lost 9 parts (1p4n2u2w) 2536 | -9/Mines | Destroyed by as-79330 with Assembled Heavy Rifle Last Messages --------------- as-40380 destroyed. D-53 Grenadier destroyed. The unstable cave ceiling collapses. as-92271 destroyed. The unstable cave ceiling collapses. Acquired Energy Filter. The unstable cave ceiling collapses. as-65828 destroyed. The unstable cave ceiling collapses. R-06 Scavenger collects Heat Sink. Acquired 27 matter. Acquired Mni. Grenade Launcher. R-06 Scavenger collects Aluminum Leg. The unstable cave ceiling collapses. Acquired 17 matter. Searching scrap... Found VTOL Module. Found 24 Matter. Destroyed Asb. Hover Unit. as-48000 suffers critical hit (Burn). Map ----- +----------------------------------------------------+ | ???????????????????????#" #??? | | ???????????????????????#" | #?# | | ???????????????????????#" # ## | | ???????????????????????# # # ## | | ???????????????????????## # ##### | | ????????????????????????# ## #???## | | ????????????????????????# # #????## ## | | ????????????????????????## #?????## ### | | ????????????????????????# #??????###### | | ????????????????????????# ###???????????# | | ????????????????????????### % #????????????## | | ??????????????????????????# % ##?????????????# | | ??????????????????????????### ##?????????????? | | ???????????????????????????## ###??????????????? | | ????????????????????????????# #????????????????? | | ????????????????????????????# %#????????????????? | | ????????????????????????????# %#????????????????? | | ????????????????????????????#= ##???????????????? | | ????????????????????????????# ##??????????????? | | ????????????????????????????# ##?????????????? | | ???????????????##???##??##### #?????????????? | | ??????????????## ### ?# #?????????????? | | ?????????? ### ! ! ?# #?????????????? | | ????????? a%<=%! # ## #?????????????? | | ????????????? * a *# ## #????????????? | | ???????????????????# =%@ ### #???????????# | | ???????????????????## % #??# #?????????## | | ????????????????????# ####???# ????????# | | ???????????????????# ????????# ??????# | | ??????????????????# ?????????# ????## | | ??????????????????# ?????????# ## | | ??????????????????## ?????????? | | ???????????????????## ?????????? | | ????????????????????###?????????? ## | | ????????????????????????????????? ?#??# | | ????????????????????????????????? > ?????????? | | ?????????????????????????????????# ?????????? | | ?????????????????????????????????# #?????????? | | ?????????????????????????????????# #?????????? | | ?????????????????????????????##### ######???? | | ????????????????????????????## ## ## ##??? # | | ???????????????????????????## #??? #? | | ???????????????????????????# #### #? | | ??????????????????????????## ## ## | | ?????????????????????###### ### ## | | ????????????????? #### ######## | | ???????????????? #??#%######## | | ?????????????????######## #??# | | ????????????????????????## ##??# ######## | | ????????????????????????# ####???# ######?## | +----------------------------------------------------+ Best States ------------- Heat Dissipation 42 Energy Generation 16 Energy Capacity 290 Matter Stores 300 Matter Capacity 300 Sight Range 16 Terrain Scan Density 10 ECM Strength 1 Armor Coverage 225 Evasion (%) 50 Targeting Accuracy 5 Recoil Reduction 2 Item Schematics ----------------- None Robot Schematics ------------------ None Fabricated ------------ Nothing Alien Tech Used ----------------- None Achievements -------------- None Challenges ------------ None Game ------ Seed LegBiocellFirepult Manual? 0 Play Time 00:21:29 Cumulative 115.3 hours Start 2024.05.25 @ 02:35:56 End 2024.05.25 @ 02:52:21 Sessions 1 Manual Loads 0 Difficulty Rogue Special Mode None Game No. 118 Rogue 109 Adventurer 9 Explorer 0 Win Type - Total 0 Types 0/0/0/0/0/0/0/0/0 Lore% 56 Gallery% 64 Achievement% 47 Wizard Run 0 Options --------- Layout 1 ASCII 0 Keyboard 0 Movement Numpad Keybinds 0 Fullscreen 1 Font 24/Smallcaps Map View 50x35 Zoom Use 0% Tactical HUD 0 Map Filters NONE Filters NONE Steam 1 RUN: 93eae98f-1a7c-41f9-aea9-7d9681e04673